fUST/lending_fUST_20250611
["ID","MTS","AMOUNT","RATE_DAILY","PERIOD"]
[365347123,1749612644253,-460.0,0.00023287,4]
[365347125,1749612644265,-1903.72,0.00023287,4]
[365347127,1749612644275,-805.1,0.00023287,4]
[365347130,1749612644291,-2749.63,0.00023287,4]
[365347133,1749612644306,-658.74,0.00023287,4]
[365347135,1749612644318,-2659.13,0.00023287,4]
[365347137,1749612644332,-595.22721351,0.00023287,4]
[365347140,1749612644347,-887.21,0.00023287,4]
[365347142,1749612644361,-460.0,0.00023287,4]
[365347145,1749612644377,-1267.45,0.00023287,4]
[365347147,1749612644389,-460.0,0.00023287,4]
[365347150,1749612644401,-1336.3,0.00023287,4]
[365347152,1749612644412,-460.0,0.00023287,4]
[365347155,1749612644426,-460.0,0.00023287,4]
[365347157,1749612644439,-1005.052943,0.000233,2]
[365347160,1749612644454,-151.0,0.000233,9]
[365347162,1749612644469,-176.7945791,0.00023315,2]
[365347165,1749612644483,-307.9447424,0.00023315,2]
[365347167,1749612644495,-1156.4994341,0.00023315,2]
[365347170,1749612644511,-1257.589503,0.00023324,3]
[365347172,1749612644524,-325.65579586,0.00023333,2]
[365347175,1749612644539,-9376.33792407,0.00023348,9]
[365347177,1749612644554,-373.93097287,0.0002338,2]
[365347180,1749612644567,-845.0,0.00023396,2]
[365347182,1749612644580,-280.4839101,0.00023399,2]
[365347185,1749612644593,-36358.74,0.000234,2]
[365347187,1749612644606,-9376.33792407,0.00023452,9]
[365347189,1749612644617,-151.0,0.00023498,7]
[365347191,1749612644628,-4232.9888404,0.000235,14]
[365347194,1749612644644,-1200.0,0.00023521,2]
[365347196,1749612644656,-507.74359681,0.00023548,2]
[365347199,1749612644666,-1666.72,0.0002355,2]
[365347201,1749612644678,-32729.77821059,0.00023553,2]
[365347203,1749612644691,-30928.24213675,0.00023553,2]
[365347206,1749612644703,-188255.88647086,0.00023553,2]
[365347208,1749612644714,-154.672298,0.00023553,7]
[365347210,1749612644725,-151.0,0.00023553,7]
[365347212,1749612644736,-151.0,0.00023553,7]
[365347214,1749612644749,-151.0,0.00023553,7]
[365347217,1749612644761,-152.918798,0.00023553,7]
[365347219,1749612644773,-342.082708,0.00023553,7]
[365347221,1749612644784,-342.082708,0.00023553,7]
[365347224,1749612644795,-151.0,0.00023553,7]
[365347226,1749612644807,-151.0,0.00023553,7]
[365347228,1749612644819,-152.839259,0.00023553,7]
[365347231,1749612644831,-151.0,0.00023553,7]
[365347233,1749612644843,-151.0,0.00023553,7]
[365347235,1749612644855,-151.0,0.00023553,7]
[365347237,1749612644867,-151.0,0.00023553,7]
[365347240,1749612644879,-151.0,0.00023553,7]
[365347242,1749612644890,-1737.251212,0.00023553,2]
[365347244,1749612644902,-1737.251212,0.00023553,2]
[365347246,1749612644914,-151.0,0.00023553,7]
[365347249,1749612644925,-151.0,0.00023555,7]
[365347251,1749612644937,-9376.33792407,0.00023555,9]
[365347253,1749612644948,-508.03,0.00023561,4]
[365347256,1749612644961,-460.0,0.00023561,4]
[365347258,1749612644972,-460.0,0.00023561,4]
[365347260,1749612644984,-1331.8,0.00023561,4]
[365347263,1749612644997,-460.0,0.00023561,4]
[365347265,1749612645009,-476.15,0.00023561,4]
[365347267,1749612645021,-476.86,0.00023561,4]
[365347269,1749612645031,-934.37,0.00023561,4]
[365347271,1749612645041,-500.0,0.00023561,4]
[365347273,1749612645049,-460.0,0.00023561,4]
[365347275,1749612645058,-2712.36,0.00023561,4]
[365347277,1749612645068,-460.0,0.00023561,4]
[365347279,1749612645077,-1035.03,0.00023561,4]
[365347281,1749612645087,-460.0,0.00023561,4]
[365347283,1749612645096,-1330.19,0.00023561,4]
[365347285,1749612645106,-701.44,0.00023561,4]
[365347287,1749612645115,-1250.8,0.00023561,4]
[365347289,1749612645125,-383.78333538,0.00023561,2]
[365347291,1749612645135,-1461.41,0.00023561,4]
[365347293,1749612645144,-727.31,0.00023561,4]
[365347295,1749612645154,-460.0,0.00023561,4]
[365347298,1749612645164,-2207.98,0.00023561,4]
[365347300,1749612645173,-3133.44,0.00023561,4]
[365347302,1749612645183,-509.4868992,0.00023561,4]
[365347304,1749612645192,-1903.72,0.00023561,4]
[365347306,1749612645201,-805.1,0.00023561,4]
[365347308,1749612645211,-2749.63,0.00023561,4]
[365347310,1749612645221,-658.74,0.00023561,4]
[365347312,1749612645230,-2659.13,0.00023561,4]
[365347314,1749612645241,-887.21,0.00023561,4]
[365347316,1749612645252,-316.90652436,0.00023561,4]
[365347337,1749612645437,-1267.45,0.00023561,4]
[365347339,1749612645450,-155.06227087,0.00023561,4]
[365347341,1749612645461,-1336.3,0.00023561,4]
[365347343,1749612645470,-460.0,0.00023561,4]
[365347345,1749612645481,-292.33817616,0.00023561,4]
[365347347,1749612645490,-178.1195935,0.0002357,2]
[365347349,1749612645500,-845.0,0.00023618,2]
[365347351,1749612645510,-845.0,0.00023643,2]
[365347353,1749612645520,-9376.33792407,0.00023659,9]
[365347355,1749612645529,-201.68787317,0.0002368,2]
[365347357,1749612645539,-847.0,0.00023692,2]
[365347359,1749612645548,-109959.58435669,0.000237,2]
[365347361,1749612645558,-5000.0,0.00023731,2]
[365347363,1749612645567,-845.0,0.00023741,2]
[365347366,1749612645578,-160.0,0.0002375,3]
[365347367,1749612645587,-161.15601205,0.0002375,5]
[365347369,1749612645596,-9376.33792407,0.00023762,9]
[365347371,1749612645606,-587.0,0.0002379,2]
[365347374,1749612645615,-587.0,0.0002379,2]
[365347376,1749612645625,-1745.0,0.00023799,3]
[365347378,1749612645634,-1745.0,0.00023799,3]
[365347380,1749612645643,-1772.85115837,0.00023799,3]
[365347382,1749612645652,-160.0,0.000238,3]
[365347384,1749612645662,-151.571426,0.000238,7]
[365347386,1749612645671,-151.0,0.000238,7]
[365347388,1749612645680,-151.0,0.000238,7]
[365347390,1749612645690,-151.0,0.000238,7]
[365347392,1749612645699,-151.0,0.000238,7]
[365347394,1749612645709,-160.0,0.000238,3]
[365347396,1749612645718,-151.0,0.000238,7]
[365347398,1749612645727,-151.0,0.000238,7]
[365347400,1749612645737,-544.54,0.000238,7]
[365347402,1749612645748,-1000.0,0.000238,3]
[365347404,1749612645758,-1000.0,0.000238,4]
[365347406,1749612645766,-151.0,0.000238,7]
[365347407,1749612645775,-151.0,0.000238,7]
[365347411,1749612645785,-151.0,0.000238,5]
[365347414,1749612645794,-155.07848048,0.000238,3]
[365347417,1749612645803,-1000.0,0.000238,2]
[365347420,1749612645812,-179379.83815196,0.000238,3]
[365347423,1749612645822,-316.0,0.000238,3]
[365347426,1749612645832,-316.0,0.000238,3]
[365347429,1749612645841,-316.0,0.000238,3]
[365347431,1749612645850,-316.0,0.000238,3]
[365347434,1749612645859,-316.0,0.000238,3]
[365347437,1749612645870,-316.0,0.000238,3]
[365347440,1749612645879,-316.0,0.000238,3]
[365347443,1749612645889,-316.0,0.000238,3]
[365347446,1749612645898,-842.5625,0.000238,3]
[365347449,1749612645908,-508.03,0.00023835,4]
[365347452,1749612645918,-460.0,0.00023835,4]
[365347455,1749612645928,-460.0,0.00023835,4]
[365347458,1749612645938,-1331.8,0.00023835,4]
[365347461,1749612645947,-460.0,0.00023835,4]
[365347464,1749612645956,-476.15,0.00023835,4]
[365347467,1749612645965,-476.86,0.00023835,4]
[365347470,1749612645975,-934.37,0.00023835,4]
[365347472,1749612645984,-500.0,0.00023835,4]
[365347474,1749612645996,-460.0,0.00023835,4]
[365347476,1749612646005,-2712.36,0.00023835,4]
[365347478,1749612646014,-460.0,0.00023835,4]
[365347480,1749612646024,-1035.03,0.00023835,4]
[365347482,1749612646033,-460.0,0.00023835,4]
[365347484,1749612646042,-1330.19,0.00023835,4]
[365347486,1749612646052,-701.44,0.00023835,4]
[365347488,1749612646061,-1250.8,0.00023835,4]
[365347490,1749612646070,-1461.41,0.00023835,4]
[365347492,1749612646079,-727.31,0.00023835,4]
[365347494,1749612646088,-460.0,0.00023835,4]
[365347496,1749612646097,-2207.98,0.00023835,4]
[365347498,1749612646106,-3133.44,0.00023835,4]
[365347499,1749612646115,-1903.72,0.00023835,4]
[365347501,1749612646125,-805.1,0.00023835,4]
[365347503,1749612646135,-2749.63,0.00023835,4]
[365347505,1749612646144,-658.74,0.00023835,4]
[365347507,1749612646153,-2659.13,0.00023835,4]
[365347509,1749612646162,-887.21,0.00023835,4]
[365347511,1749612646173,-1267.45,0.00023835,4]
[365347513,1749612646183,-1336.3,0.00023835,4]
[365347515,1749612646192,-460.0,0.00023835,4]
[365347517,1749612646201,-1744.0,0.00023855,3]
[365347519,1749612646210,-1744.0,0.00023855,3]
[365347521,1749612646220,-1744.0,0.00023855,3]
[365347523,1749612646229,-1744.0,0.00023855,3]
[365347525,1749612646245,-1744.0,0.00023855,3]
[365347527,1749612646254,-1744.0,0.00023855,3]
[365347529,1749612646266,-1744.0,0.00023855,3]
[365347531,1749612646275,-1744.0,0.00023855,3]
[365347533,1749612646284,-1744.0,0.00023855,3]
[365347535,1749612646293,-1744.0,0.00023855,3]
[365347537,1749612646302,-1744.0,0.00023855,3]
[365347539,1749612646312,-1744.0,0.00023855,3]
[365347541,1749612646321,-1744.0,0.00023855,3]
[365347543,1749612646330,-1744.0,0.00023855,3]
[365347545,1749612646341,-1744.0,0.00023855,3]
[365347547,1749612646350,-1744.0,0.00023855,3]
[365347549,1749612646359,-1744.0,0.00023855,3]
[365347551,1749612646367,-1744.0,0.00023855,3]
[365347553,1749612646376,-1744.0,0.00023855,3]
[365347555,1749612646385,-1744.0,0.00023855,3]
[365347557,1749612646394,-1392.40905229,0.00023855,3]
[365347559,1749612646403,-153.9056378,0.00023863,2]
[365347561,1749612646412,-9376.33792407,0.00023866,10]
[365347563,1749612646421,-1374.84286504,0.00023868,3]
[365347565,1749612646431,-151.0,0.00023868,3]
[365347567,1749612646440,-152.8942424,0.00023868,3]
[365347569,1749612646449,-171.0,0.00023868,3]
[365347571,1749612646457,-271.03904922,0.00023868,3]
[365347573,1749612646467,-1861.35,0.000239,7]
[365347575,1749612646477,-160.0,0.000239,3]
[365347577,1749612646487,-11860.25191276,0.000239,3]
[365347579,1749612646497,-229.71724145,0.000239,3]
[365347581,1749612646507,-424.19973472,0.000239,3]
[365347583,1749612646516,-835.03886221,0.000239,3]
[365347585,1749612646525,-160.0,0.000239,3]
[365347587,1749612646534,-160.0,0.000239,3]
[365347589,1749612646544,-213.16534259,0.000239,3]
[365347591,1749612646553,-423.0,0.00023912,2]
[365347593,1749612646562,-5000.0,0.0002393,2]
[365347595,1749612646571,-9376.33792407,0.00023969,10]
[365347597,1749612646580,-165.80565524,0.00023973,2]
[365347599,1749612646590,-845.0,0.00023991,2]
[365347601,1749612646600,-316.0,0.00023995,3]
[365347603,1749612646610,-326.25487218,0.00023995,3]
[365347605,1749612646619,-13918.0,0.00024,2]
[365347607,1749612646629,-160.0,0.00024,7]
[365347609,1749612646638,-160.0,0.00024,7]
[365347611,1749612646647,-160.0,0.00024,10]
[365347613,1749612646656,-6751.30073568,0.00024,2]
[365347615,1749612646665,-365.0707398,0.00024,2]
[365347617,1749612646674,-365.0707398,0.00024,2]
[365347619,1749612646683,-365.0707398,0.00024,2]
[365347621,1749612646692,-365.0707398,0.00024,2]
[365347623,1749612646701,-151.0,0.00024,9]
[365347625,1749612646710,-158.35,0.00024,2]
[365347626,1749612646719,-153.607775,0.00024,7]
[365347629,1749612646728,-151.0,0.00024,7]
[365347630,1749612646737,-151.931106,0.00024,7]
[365347632,1749612646749,-151.0,0.00024,7]
[365347635,1749612646759,-11860.25191276,0.00024,10]
[365347637,1749612646768,-229.71724145,0.00024,7]
[365347638,1749612646777,-229.71724145,0.00024,10]
[365347640,1749612646786,-229.71724145,0.00024,3]
[365347642,1749612646796,-342.082708,0.00024,7]
[365347645,1749612646805,-342.082708,0.00024,7]
[365347647,1749612646815,-151.0,0.00024,7]
[365347648,1749612646826,-424.19973472,0.00024,7]
[365347650,1749612646835,-424.19973472,0.00024,10]
[365347653,1749612646845,-835.03886221,0.00024,7]
[365347655,1749612646854,-835.03886221,0.00024,10]
[365347657,1749612646864,-160.0,0.00024,7]
[365347658,1749612646873,-160.0,0.00024,10]
[365347661,1749612646882,-151.0,0.00024,7]
[365347662,1749612646891,-151.0,0.00024,7]
[365347665,1749612646900,-213.16534259,0.00024,10]
[365347666,1749612646910,-215.0738,0.00024004,2]
[365347669,1749612646920,-325.65579586,0.00024021,2]
[365347671,1749612646928,-1800.0,0.00024068,2]
[365347672,1749612646938,-9376.33792407,0.00024072,10]
[365347674,1749612646947,-151.0,0.00024103,7]
[365347676,1749612646956,-152.624397,0.00024103,7]
[365347679,1749612646965,-151.0,0.00024103,7]
[365347680,1749612646975,-158.344081,0.00024103,7]
[365347682,1749612646985,-151.0,0.00024103,7]
[365347685,1749612646997,-151.0,0.00024103,7]
[365347686,1749612647007,-151.0,0.00024103,7]
[365347688,1749612647015,-151.0,0.00024109,7]
[365347691,1749612647025,-152.446039,0.00024109,7]
[365347692,1749612647035,-151.635431,0.00024109,7]
[365347695,1749612647045,-508.03,0.00024109,4]
[365347697,1749612647054,-460.0,0.00024109,4]
[365347699,1749612647063,-460.0,0.00024109,4]
[365347701,1749612647073,-151.0,0.00024109,7]
[365347703,1749612647083,-1331.8,0.00024109,4]
[365347705,1749612647092,-460.0,0.00024109,4]
[365347707,1749612647102,-151.0,0.00024109,7]
[365347709,1749612647111,-476.15,0.00024109,4]
[365347711,1749612647121,-476.86,0.00024109,4]
[365347713,1749612647131,-934.37,0.00024109,4]
[365347715,1749612647140,-500.0,0.00024109,4]
[365347717,1749612647150,-460.0,0.00024109,4]
[365347719,1749612647159,-151.0,0.00024109,7]
[365347721,1749612647168,-2712.36,0.00024109,4]
[365347723,1749612647176,-460.0,0.00024109,4]
[365347725,1749612647185,-151.0,0.00024109,7]
[365347727,1749612647195,-512.09458815,0.00024109,4]
[365347729,1749612647210,-522.93541185,0.00024109,4]
[365347731,1749612647220,-229.17991827,0.00024109,4]
[365347733,1749612647229,-1330.19,0.00024109,4]
[365347735,1749612647238,-701.44,0.00024109,4]
[365347737,1749612647248,-1250.8,0.00024109,4]
[365347739,1749612647257,-1461.41,0.00024109,4]
[365347741,1749612647271,-727.31,0.00024109,4]
[365347743,1749612647279,-1737.251212,0.00024109,2]
[365347745,1749612647289,-460.0,0.00024109,4]
[365347747,1749612647299,-2207.98,0.00024109,4]
[365347749,1749612647309,-3133.44,0.00024109,4]
[365347751,1749612647319,-1737.251212,0.00024109,2]
[365347753,1749612647328,-151.0,0.00024109,7]
[365347755,1749612647338,-1903.72,0.00024109,4]
[365347757,1749612647349,-805.1,0.00024109,4]
[365347759,1749612647359,-2749.63,0.00024109,4]
[365347761,1749612647369,-658.74,0.00024109,4]
[365347763,1749612647378,-2659.13,0.00024109,4]
[365347765,1749612647387,-887.21,0.00024109,4]
[365347767,1749612647397,-1267.45,0.00024109,4]
[365347769,1749612647406,-182.07496278,0.00024109,4]
[365347771,1749612647416,-1336.3,0.00024109,4]
[365347773,1749612647425,-4538.86457504,0.0002411,3]
[365347775,1749612647435,-151.0,0.0002411,7]
[365347777,1749612647444,-151.0,0.0002411,7]
[365347779,1749612647454,-286.936294,0.0002411,7]
[365347781,1749612647463,-286.936294,0.0002411,7]
[365347783,1749612647472,-5792.04253339,0.0002411,3]
[365347785,1749612647484,-667.58803514,0.0002411,3]
[365347788,1749612647500,-531.5,0.0002411,3]
[365347790,1749612647511,-5508.86943147,0.0002411,3]
[365347792,1749612647520,-152.962357,0.00024158,7]
[365347794,1749612647530,-3550.654663,0.00024176,10]
[365347796,1749612647541,-5825.68326107,0.00024176,10]
[365347798,1749612647551,-4.28927204,0.000242,7]
[365347802,1749612647603,-437.01982406,0.00021095,4]
[365347810,1749612647809,-5.3907302,0.00021095,4]
[365347812,1749612647818,-460.0,0.00021095,4]
[365347814,1749612647827,-454.47820683,0.00021095,4]
[365347816,1749612647836,-460.0,0.00021369,4]
[365347818,1749612647846,-460.0,0.00021643,4]
[365347820,1749612647855,-460.0,0.00021917,4]
[365347822,1749612647864,-360.0,0.00022191,4]
[365347824,1749612647874,-500.0,0.00022209,2]
[365347826,1749612647883,-464.36203542,0.00022209,2]
[365347828,1749612647892,-500.0,0.00022209,2]
[365347830,1749612647901,-500.0,0.00022209,2]
[365347832,1749612647910,-500.0,0.00022209,2]
[365347834,1749612647920,-500.0,0.00022209,2]
[365347836,1749612647928,-460.0,0.00023287,4]
[365347838,1749612647938,-460.0,0.00023561,4]
[365347840,1749612647947,-460.0,0.00023835,4]
[365347842,1749612647956,-332.18873429,0.00024109,4]
[365347844,1749612647965,-42700.05439969,0.000242,7]
[365349364,1749612790483,-282.02,0.00019728,2]
[365349366,1749613136471,1256.3765187,0.00024,120]
[365349367,1749613182856,232.26982827,0.0002411,120]
[365349368,1749613233996,186.945494,0.00013699,2]
[365349371,1749613526651,-298.84282811,0.00019731,2]
[365349375,1749613586186,10000.0,0.00024658,120]
[365349376,1749613596510,10000.0,0.00024658,120]
[365349377,1749613607984,10000.0,0.00024658,120]
[365349378,1749613614018,10000.0,0.00024658,120]
[365349381,1749613637748,10000.0,0.00024658,120]
[365349398,1749613644192,10000.0,0.00024658,120]
[365349405,1749613651594,10000.0,0.00024658,120]
[365349406,1749613660075,10000.0,0.00024658,120]
[365349407,1749613667163,10000.0,0.00024658,120]
[365349408,1749613676998,10000.0,0.00024658,120]
[365349409,1749613683665,10000.0,0.00024658,120]
[365349410,1749613689983,10000.0,0.00024658,120]
[365349411,1749613697698,10000.0,0.00024658,120]
[365349412,1749613703946,10000.0,0.00024658,120]
[365349413,1749613709918,-297.75,0.00019495,2]
[365349414,1749613710618,10000.0,0.00024658,120]
[365349415,1749613718006,10000.0,0.00024658,120]
[365349416,1749613724453,10000.0,0.00024658,120]
[365349417,1749613731304,10000.0,0.00024658,120]
[365349418,1749613738712,10000.0,0.00024658,120]
[365349419,1749613745446,10000.0,0.00024658,120]
[365349420,1749613751236,10000.0,0.00024658,120]
[365349421,1749613759780,10000.0,0.00024658,120]
[365349422,1749613767185,10000.0,0.00024658,120]
[365349423,1749613773434,10000.0,0.00024658,120]
[365349424,1749613779745,10000.0,0.00024658,120]
[365349426,1749613811424,849.86558567,0.00023671,120]
[365349447,1749613832471,-293.96,0.00019903,2]
[365349449,1749613832481,-300.0,0.00020092,2]
[365349450,1749613832491,-300.0,0.00020092,2]
[365349451,1749613832511,-300.0,0.00020092,2]
[365349452,1749613832521,-126.89925227,0.00020092,2]
[365349453,1749613832532,-267.88980492,0.00020092,2]
[365349454,1749613832545,-805.21094281,0.00020092,2]
[365349455,1749613832554,-276.37856739,0.00020093,2]
[365349456,1749613832580,-23.62143261,0.00020093,2]
[365349457,1749613832590,-2270.99082115,0.00020094,2]
[365349458,1749613832739,-22629.00917885,0.00020094,2]
[365349459,1749613832749,-10265.39823508,0.00020094,2]
[365349460,1749613832759,-186.945494,0.00020187,2]
[365349461,1749613832768,-163.6,0.00020468,2]
[365349462,1749613832777,-9451.10468411,0.00020468,2]
[365349463,1749613832787,-587.91,0.00020851,2]
[365349464,1749613832796,-130.24251745,0.00021064,2]
[365349465,1749613832808,-369.75748255,0.00021064,2]
[365349466,1749613832817,-502.35264558,0.00021073,2]
[365349467,1749613832826,-127.88987187,0.00021073,2]
[365349525,1749613838826,-372.11012813,0.00021073,2]
[365349527,1749613838836,-95.20796047,0.00021073,2]
[365349533,1749613838880,-404.79203953,0.00021073,2]
[365349535,1749613838889,-507.52815332,0.00021073,2]
[365349537,1749613838899,-265.13203317,0.00021073,2]
[365349539,1749613838911,-234.86796683,0.00021073,2]
[365349541,1749613838921,-239.28,0.00021094,2]
[365349543,1749613838930,-402.8643192,0.00021095,4]
[365349545,1749613838939,-400.0,0.00021095,4]
[365349547,1749613838948,-460.0,0.00021095,4]
[365349550,1749613838966,-460.0,0.00021095,4]
[365349552,1749613838977,-440.0,0.00021095,4]
[365349554,1749613838987,-376.52464929,0.00021095,4]
[365349556,1749613838996,-460.0,0.00021095,4]
[365349558,1749613839006,-460.0,0.00021095,4]
[365349560,1749613839015,-410.0,0.00021095,4]
[365349562,1749613839025,-388.36877688,0.00021095,4]
[365349563,1749613839035,-233.4899143,0.00021095,4]
[365349564,1749613839061,-226.5100857,0.00021095,4]
[365349565,1749613839071,-460.0,0.00021095,4]
[365349566,1749613839081,-406.9651575,0.00021095,4]
[365349567,1749613839090,-460.0,0.00021095,4]
[365349568,1749613839100,-460.0,0.00021095,4]
[365349569,1749613839110,-460.0,0.00021095,4]
[365349570,1749613839119,-154.89348063,0.00021095,4]
[365349571,1749613839129,-426.16956565,0.00021095,4]
[365349572,1749613839138,-460.0,0.00021095,4]
[365349573,1749613839148,-440.0,0.00021095,4]
[365349574,1749613839158,-430.0,0.00021095,4]
[365349575,1749613839167,-430.0,0.00021095,4]
[365349576,1749613839177,-446.67535593,0.00021095,4]
[365349577,1749613839186,-406.99619169,0.00021095,4]
[365349578,1749613839196,-434.99163035,0.00021095,4]
[365349579,1749613839205,-439.40044257,0.00021095,4]
[365349580,1749613839216,-460.0,0.00021095,4]
[365349581,1749613839225,-430.0,0.00021095,4]
[365349582,1749613839386,-430.0,0.00021095,4]
[365349583,1749613839396,-440.01762982,0.00021095,4]
[365349584,1749613839406,-466.39693214,0.00021095,4]
[365349585,1749613839415,-460.0,0.00021095,4]
[365349586,1749613839424,-430.0,0.00021095,4]
[365349587,1749613839434,-459.54524491,0.00021095,4]
[365349588,1749613839443,-442.26035825,0.00021095,4]
[365349589,1749613839451,-442.0723754,0.00021095,4]
[365349590,1749613839461,-440.21589457,0.00021095,4]
[365349591,1749613839472,-437.91168777,0.00021095,4]
[365349592,1749613839481,-450.51132555,0.00021095,4]
[365349593,1749613839491,-327.42237622,0.00021095,4]
[365349594,1749613839500,-460.0,0.00021095,4]
[365349595,1749613839509,-430.0,0.00021095,4]
[365349596,1749613839519,-271.79467864,0.00021095,4]
[365349597,1749613839533,-455.05216204,0.00021095,4]
[365349598,1749613839543,-2272.46,0.00021095,4]
[365349599,1749613839552,-460.0,0.00021095,4]
[365349600,1749613839562,-460.0,0.00021095,4]
[365349601,1749613839572,-460.0,0.00021095,4]
[365349602,1749613839582,-967.8,0.00021095,4]
[365349603,1749613839591,-460.0,0.00021095,4]
[365349604,1749613839600,-460.0,0.00021095,4]
[365349605,1749613839610,-472.84290823,0.00021095,4]
[365349606,1749613839621,-774.84,0.00021095,4]
[365349607,1749613839633,-453.3240402,0.00021095,4]
[365349608,1749613839642,-460.0,0.00021095,4]
[365349609,1749613839652,-460.0,0.00021095,4]
[365349610,1749613839663,-460.0,0.00021095,4]
[365349611,1749613839674,-460.0,0.00021095,4]
[365349612,1749613839683,-468.09808212,0.00021095,4]
[365349613,1749613839693,-454.59611311,0.00021095,4]
[365349614,1749613839705,-464.22806016,0.00021095,4]
[365349615,1749613839715,-460.0,0.00021095,4]
[365349616,1749613839725,-435.4188828,0.00021095,4]
[365349617,1749613839735,-461.69236147,0.00021095,4]
[365349618,1749613839745,-464.617592,0.00021095,4]
[365349619,1749613839755,-440.0,0.00021095,4]
[365349620,1749613839764,-460.0,0.00021095,4]
[365349621,1749613839773,-460.0,0.00021095,4]
[365349622,1749613839783,-460.0,0.00021095,4]
[365349623,1749613839793,-460.0,0.00021095,4]
[365349624,1749613839803,-460.0,0.00021095,4]
[365349625,1749613839812,-460.0,0.00021095,4]
[365349626,1749613839822,-430.0,0.00021095,4]
[365349627,1749613839831,-434.90047896,0.00021095,4]
[365349628,1749613839840,-460.0,0.00021095,4]
[365349629,1749613839850,-460.0,0.00021095,4]
[365349630,1749613839859,-460.0,0.00021095,2]
[365349631,1749613839869,-460.0,0.00021095,4]
[365349632,1749613839879,-437.95963149,0.00021095,4]
[365349633,1749613839889,-427.53545038,0.00021095,4]
[365349634,1749613839899,-440.0,0.00021095,4]
[365349635,1749613839909,-458.92240387,0.00021095,4]
[365349636,1749613839918,-2128.05,0.00021095,4]
[365349637,1749613839928,-919.45,0.00021095,4]
[365349638,1749613839938,-177.37996635,0.00021095,4]
[365349639,1749613839947,-440.0,0.00021095,4]
[365349640,1749613839957,-449.59086248,0.00021095,4]
[365349641,1749613839968,-576.52,0.00021095,4]
[365349642,1749613839977,-1453.32,0.00021095,4]
[365349643,1749613839987,-440.0,0.00021095,4]
[365349644,1749613839996,-595.22721351,0.00021095,4]
[365349645,1749613840006,-460.0,0.00021095,4]
[365349646,1749613840015,-527.89,0.00021095,4]
[365349647,1749613840025,-883.82,0.00021095,4]
[365349648,1749613840035,-460.0,0.00021095,4]
[365349649,1749613840044,-514.04277809,0.00021095,4]
[365349650,1749613840054,-447.10320258,0.00021095,4]
[365349651,1749613840063,-447.00703733,0.00021095,4]
[365349652,1749613840073,-1043.89,0.00021095,4]
[365349653,1749613840082,-400.33389559,0.00021095,4]
[365349654,1749613840091,-460.0,0.00021095,4]
[365349656,1749613840101,-1875.49,0.00021095,4]
[365349657,1749613840110,-460.0,0.00021095,4]
[365349658,1749613840120,-460.0,0.00021095,4]
[365349659,1749613840129,-485.3112175,0.00021095,4]
[365349660,1749613840138,-460.0,0.00021095,4]
[365349661,1749613840147,-460.0,0.00021095,4]
[365349663,1749613840159,-460.0,0.00021095,4]
[365349664,1749613840170,-440.0,0.00021095,4]
[365349665,1749613840181,-1462.09,0.00021095,4]
[365349666,1749613840191,-460.0,0.00021095,4]
[365349667,1749613840200,-460.0,0.00021095,4]
[365349668,1749613840210,-460.0,0.00021095,4]
[365349669,1749613840220,-1092.66,0.00021095,4]